bitfinex/quotes_ETHUSD_20260226
["timestamp","ask_amount","ask_price","bid_price","bid_amount"]
[1772129010120,1.626,1990.9,1990.0,1.5875883]
[1772129010321,1.57667762,1990.8,1990.1,1.25621828]
[1772129012147,1.57667762,1991.4,1990.3,1.5875883]
[1772129012326,1.57667762,1991.3,1990.7,1.25583965]
[1772129012533,1.57667762,1991.3,1990.4,1.25602893]
[1772129014649,2.83220192,1991.2,1990.3,5.02432609]
[1772129014850,1.57667762,1991.1,1990.3,5.02432609]
[1772129015233,1.57667762,1991.0,1990.3,5.02432609]
[1772129016054,0.001,1990.7,1990.3,5.02432609]
[1772129017361,0.001,1990.7,1990.3,1.25609204]
[1772129017538,0.001,1990.7,1990.2,2.70310265]
[1772129018361,0.001,1990.7,1990.2,1.25610265]
[1772129021566,1.57667762,1991.1,1990.3,2.22867258]
[1772129021746,1.57667762,1991.4,1990.3,2.22867258]
[1772129021952,1.57767762,1991.6,1990.9,2.22867258]
[1772129022260,2.83296124,1991.6,1990.9,2.22867258]
[1772129023059,1.57767762,1991.6,1990.9,2.22867258]
[1772129023264,0.001,1991.6,1991.0,1.25565042]
[1772129023795,0.001,1991.6,1990.9,1.25567799]
[1772129023796,2.83295873,1991.6,1990.9,1.25567799]
[1772129024879,1.57667762,1991.5,1990.9,1.25567799]
[1772129025284,2.83206543,1991.5,1990.9,1.25567799]
[1772129025489,1.57667762,1991.4,1990.6,2.70785191]
[1772129026112,1.57667762,1991.2,1990.4,1.2560027]
[1772129027898,1.57667762,1991.2,1990.5,2.22867258]
[1772129028105,5.02223361,1991.6,1990.7,2.22867258]
[1772129028106,1.57767762,1991.6,1990.7,2.22867258]
[1772129028401,1.57667762,1991.5,1990.7,2.22867258]
[1772129030098,1.57667762,1991.5,1990.8,1.25577657]
[1772129030278,0.001,1991.6,1990.8,1.25577657]
[1772129030464,1.57767762,1991.6,1990.8,1.25577657]
[1772129030660,1.57667762,1991.5,1990.8,1.25577657]
[1772129032794,1.57667762,1991.3,1990.6,1.25586638]
[1772129035690,1.57667762,1991.3,1990.5,5.02371573]
[1772129036088,4.49697887,1991.6,1990.7,2.22867258]
[1772129036393,1.57667762,1991.5,1990.7,2.22867258]
[1772129037484,1.57667762,1991.5,1990.5,6.47471573]
[1772129037879,1.25539821,1991.4,1990.5,8.70338831]
[1772129038100,1.57667762,1991.3,1990.5,6.47471573]
[1772129039700,1.665,1991.6,1990.6,2.22867258]
[1772129039885,1.57667762,1991.5,1990.7,1.25068633]
[1772129040068,1.57667762,1991.4,1990.7,1.25068633]
[1772129040272,1.57767762,1991.4,1990.7,1.25068633]
[1772129041401,1.57767762,1991.6,1990.9,2.22867258]
[1772129041699,1.57767762,1991.6,1990.8,4.45734516]
[1772129041700,1.57667762,1991.8,1991.2,2.22867258]
[1772129041886,1.57667762,1991.8,1990.8,4.45734516]
[1772129041887,1.57667762,1992.1,1991.5,2.22867258]
[1772129042296,1.662,1992.2,1991.5,2.22867258]
[1772129042608,1.57667762,1992.3,1991.8,2.22867258]
[1772129043107,1.57667762,1992.6,1991.8,2.22867258]
[1772129043607,1.57667762,1992.6,1991.6,0.18685624]
[1772129044293,1.57667762,1992.4,1991.6,5.02086398]
[1772129047675,1.57667762,1992.4,1991.5,1.452]
[1772129047880,1.57667762,1992.2,1991.6,1.25527214]
[1772129048581,1.57667762,1992.9,1992.0,2.22867258]
[1772129049484,1.57667762,1992.7,1992.0,2.22867258]
[1772129049990,1.57667762,1993.0,1992.3,2.22867258]
[1772129050191,1.57667762,1993.0,1992.1,1.25495708]
[1772129052105,1.57667762,1992.9,1992.1,1.25495708]
[1772129052287,0.001,1992.8,1992.1,1.25495708]
[1772129053212,1.57767762,1992.8,1992.1,1.25495708]
[1772129054012,1.57767762,1992.8,1991.8,5.02041331]
[1772129054510,1.57667762,1992.6,1991.7,1.25514609]
[1772129055305,1.57667762,1992.6,1991.7,3.48381867]
[1772129057135,1.57667762,1992.5,1991.7,1.25514609]
[1772129059004,1.57667762,1992.3,1991.7,1.25514609]
[1772129059838,1.57667762,1992.3,1991.6,2.70526776]
[1772129060044,1.57667762,1992.3,1991.6,1.45]
[1772129060340,1.57667762,1992.3,1991.6,1.25527026]
[1772129061207,1.57667762,1992.2,1991.5,5.02130697]
[1772129061515,1.57667762,1992.3,1991.5,5.02130697]
[1772129064442,1.57667762,1992.3,1991.7,0.0011]
[1772129065150,1.57667762,1992.2,1991.7,0.0011]
[1772129066439,1.25495708,1992.1,1991.7,0.0011]
[1772129067133,1.57667762,1992.0,1991.7,0.0011]
[1772129069959,1.57667762,1992.3,1991.7,0.0011]
[1772129070638,1.57667762,1992.2,1991.7,0.0011]
[1772129073156,2.8316347,1992.1,1991.7,0.0011]
[1772129073358,1.57667762,1992.0,1991.7,0.0011]
[1772129077156,0.001,1992.1,1991.7,0.0011]
[1772129077357,2.90680159,1992.4,1991.8,1.5892173]
[1772129077358,3.22867762,1992.4,1991.8,1.5892173]
[1772129077520,1.653,1992.7,1992.1,1.5892173]
[1772129077958,2.90757943,1992.7,1992.1,1.5892173]
[1772129078162,3.22967762,1992.7,1992.1,1.5892173]
[1772129078726,0.001,1992.8,1992.2,1.25489408]
[1772129078950,0.001,1992.8,1992.4,1.5892173]
[1772129079534,0.001,1992.8,1992.2,1.25489408]
[1772129081757,0.001,1992.8,1992.1,5.01957634]
[1772129081958,0.001,1992.8,1992.3,1.5892173]
[1772129083056,1.57767762,1993.1,1992.6,1.5892173]
[1772129083743,1.57767762,1993.1,1992.7,1.25457921]
[1772129084747,1.57767762,1993.1,1992.3,2.84404839]
[1772129084748,1.57667762,1993.0,1992.3,2.84404839]
[1772129084946,1.57667762,1993.0,1992.3,1.25483109]
[1772129085254,1.57667762,1993.0,1992.0,1.5892173]
[1772129085556,1.57667762,1992.8,1992.0,2.84418838]
[1772129085746,1.57667762,1992.6,1992.0,2.84418838]
[1772129088460,2.83136352,1992.6,1992.0,2.84418838]
[1772129088679,1.57667762,1992.5,1991.7,0.0011]
[1772129088830,1.57767762,1992.5,1991.7,1.25630102]
[1772129089935,1.57767762,1992.5,1991.7,1.25525722]
[1772129090451,1.57667762,1992.3,1991.7,5.62e-05]
[1772129092357,1.57667762,1992.3,1991.8,1.5892173]
[1772129092537,1.57767762,1992.5,1991.9,1.25508308]
[1772129092736,2.83238406,1992.5,1991.9,1.25508308]
[1772129092946,1.57667762,1992.4,1991.9,1.25508308]
[1772129094876,1.57667762,1992.3,1991.7,1.25525642]
[1772129097577,1.57667762,1992.2,1991.7,5.62e-05]
[1772129097890,0.001,1992.5,1991.7,5.62e-05]
[1772129097891,0.001,1992.5,1991.7,1.77612974]
[1772129098178,2.8323886,1992.5,1992.0,1.5892173]
[1772129098480,1.57767762,1992.5,1992.0,1.5892173]
[1772129098976,1.57667762,1992.4,1991.8,3.0362173]
[1772129099774,1.57667762,1992.4,1991.8,4.29132805]
[1772129099978,2.83149694,1992.4,1991.8,2.70211075]
[1772129100145,1.57667762,1992.4,1991.8,2.70211075]
[1772129100473,2.83145221,1992.4,1991.8,2.70211075]
[1772129100881,1.57667762,1992.4,1991.8,2.70211075]
[1772129101075,2.83145202,1992.4,1991.8,2.70211075]
[1772129101270,1.57667762,1992.4,1991.8,2.70211075]
[1772129101472,1.57667762,1992.4,1991.8,2.70321075]
[1772129101979,1.57667762,1992.4,1991.9,1.5892173]
[1772129102179,0.001,1992.5,1992.1,1.5892173]
[1772129103286,1.57667762,1992.8,1992.3,1.5892173]
[1772129103578,1.57667762,1992.8,1992.0,1.5892173]
[1772129104177,1.57667762,1992.7,1992.1,1.25495708]
[1772129105775,1.57667762,1992.7,1992.0,1.25497636]
[1772129106179,1.57667762,1992.7,1992.1,1.5892173]
[1772129106482,1.57667762,1992.7,1992.3,1.5892173]
[1772129106848,2.40442023,1993.0,1992.3,1.5892173]
[1772129107052,1.57767762,1993.1,1992.6,1.5892173]
[1772129108255,1.57767762,1993.1,1992.7,1.25457921]
[1772129108491,1.57667762,1993.3,1992.7,1.25457921]
[1772129108693,0.001,1993.5,1992.9,1.5892173]
[1772129108856,1.57767762,1993.5,1992.9,1.5892173]
[1772129110259,1.57767762,1993.5,1993.0,1.25439036]
[1772129110785,1.52352046,1993.7,1993.4,1.5892173]
[1772129111187,1.52352046,1993.9,1993.4,1.5892173]
[1772129111889,1.52352046,1993.9,1993.2,1.448]
[1772129112567,1.52352046,1993.7,1993.2,1.448]
[1772129112762,1.52352046,1993.7,1993.2,2.70224853]
[1772129113371,1.52452046,1993.4,1992.9,1.25440356]
[1772129114592,1.52352046,1993.3,1992.8,2.70147106]
[1772129115089,1.52352046,1993.3,1992.5,5.01869903]
[1772129115265,1.52352046,1993.3,1992.5,1.25470514]
[1772129116690,1.52352046,1993.1,1992.5,1.25470514]
[1772129117269,1.52352046,1993.1,1992.5,2.84392244]
[1772129122298,1.52352046,1993.0,1992.5,1.25470514]
[1772129123997,1.52352046,1993.0,1992.5,2.84392244]
[1772129124500,1.52352046,1992.9,1992.3,1.2547693]
[1772129125306,1.52352046,1992.9,1992.6,0.0011]
[1772129125782,1.52352046,1992.8,1992.6,0.0011]
[1772129125981,1.52352046,1992.8,1992.3,0.0011]
[1772129126883,1.52352046,1992.8,1992.2,1.25489408]
[1772129126884,1.52352046,1992.8,1992.1,2.7089491]
[1772129128405,1.52297046,1992.7,1992.1,2.7089491]
[1772129128806,1.52297046,1993.0,1992.4,1.5892173]
[1772129128999,1.52297046,1993.0,1992.2,1.5892173]
[1772129129487,1.52297046,1993.0,1992.1,1.2549491]
[1772129130612,1.52297046,1992.8,1992.1,1.2549491]
[1772129132685,1.52297046,1992.7,1992.1,1.2549491]
[1772129132884,1.52297046,1993.2,1992.1,1.2549491]
[1772129133084,1.52297046,1993.1,1992.3,1.5892173]
[1772129133385,1.52297046,1993.1,1992.2,1.455]
[1772129134709,1.52297046,1992.9,1992.1,1.2549491]
[1772129135118,1.633,1992.8,1991.9,0.0011]
[1772129135331,1.52297046,1992.7,1991.9,0.0011]
[1772129135504,1.52297046,1992.7,1991.9,1.25618089]
[1772129136413,1.52297046,1992.7,1991.9,2.84539819]
[1772129136912,1.52297046,1992.5,1991.9,0.0011]
[1772129137691,1.52297046,1992.9,1992.3,1.5892173]
[1772129138093,0.001,1992.7,1992.3,1.5892173]
[1772129139315,0.001,1992.7,1992.3,1.25483109]
[1772129140017,1.52397046,1992.7,1992.1,1.25490832]
[1772129142399,1.52297046,1992.5,1992.0,0.0011]
[1772129143024,0.001,1992.7,1992.1,2.22390215]
[1772129143195,1.52297046,1992.9,1992.4,2.22390215]
[1772129143394,1.52297046,1992.9,1992.1,0.18685624]
[1772129144518,1.52297046,1992.9,1992.2,1.25489408]
[1772129144711,1.52297046,1992.9,1992.3,2.22390215]
[1772129146618,1.25437642,1993.1,1992.3,2.22390215]
[1772129146619,1.52297046,1993.1,1992.6,2.22390215]
[1772129147826,1.52297046,1993.3,1992.6,2.22390215]
[1772129148126,1.52297046,1993.3,1992.4,1.25476811]
[1772129148933,1.52297046,1993.1,1992.3,2.70883108]
[1772129149724,1.52297046,1993.1,1992.1,1.25492601]
[1772129150019,1.52297046,1993.1,1992.0,2.22500215]
[1772129150223,1.52297046,1993.1,1992.0,1.25608806]
[1772129150595,1.52297046,1993.1,1992.2,0.0011]
[1772129151012,1.52297046,1992.9,1992.0,0.0011]
[1772129151216,1.52242046,1992.7,1992.0,0.0011]
[1772129152918,1.52242046,1992.5,1992.0,0.0011]
[1772129156236,1.52242046,1992.3,1992.0,0.0011]
[1772129157107,1.52242046,1992.3,1991.9,0.0011]
[1772129158123,1.52187046,1992.1,1991.6,0.0011]
[1772129159227,2.22390215,1992.1,1991.4,0.0011]
[1772129159404,1.52187046,1992.0,1991.4,0.0011]
[1772129159831,1.52187046,1991.8,1991.0,0.0011]
[1772129160020,2.60253141,1991.9,1991.0,0.0011]
[1772129160021,1.52187046,1991.6,1991.0,0.0011]
[1772129160331,1.52187046,1991.6,1990.5,0.8151]
[1772129160332,1.52187046,1991.3,1990.5,0.8151]
[1772129160534,1.52187046,1991.3,1990.5,2.07106062]
[1772129161335,1.52187046,1991.3,1990.5,0.0011]
[1772129161650,1.25533517,1991.5,1990.2,0.0011]
[1772129161651,1.52187046,1991.0,1990.2,0.0011]
[1772129162306,1.52187046,1990.8,1990.2,0.0011]
[1772129164715,1.52187046,1990.6,1990.2,0.0011]
[1772129164919,1.52187046,1990.6,1990.0,0.0011]
[1772129165215,1.52132046,1990.5,1990.0,0.0011]
[1772129165740,1.52132046,1990.5,1989.6,0.0011]
[1772129165922,1.52132046,1990.2,1989.6,0.0011]
[1772129166117,1.52132046,1990.0,1989.6,0.0011]
[1772129166459,1.627,1990.1,1989.6,1.25761553]
[1772129166750,1.25609204,1990.3,1989.6,0.0011]
[1772129167043,2.7774125,1990.3,1989.6,0.0011]
[1772129167338,1.52132046,1990.7,1989.7,0.18685624]
[1772129167707,5.02238555,1991.1,1990.0,0.18685624]
[1772129167708,2.77699299,1991.0,1990.0,0.18685624]
[1772129167910,1.52132046,1990.9,1990.0,0.18685624]
[1772129168833,1.52132046,1990.9,1990.1,1.25621828]
[1772129169271,1.52132046,1991.2,1990.4,2.22390215]
[1772129169619,2.77686029,1991.2,1990.3,1.50582604]
[1772129169825,1.52132046,1991.1,1990.3,1.50582604]
[1772129170223,1.52132046,1991.1,1990.1,3.48012043]
[1772129170224,1.52132046,1991.1,1990.1,1.25621828]
[1772129170929,1.52132046,1990.9,1990.1,1.25621828]
[1772129172744,1.52132046,1990.9,1989.9,5.02487312]
[1772129173145,1.52132046,1990.9,1990.1,2.22390215]
[1772129173338,1.52132046,1990.9,1990.1,3.72972819]
[1772129173526,2.77704071,1990.9,1990.1,3.72972819]
[1772129173855,1.52132046,1990.9,1990.1,3.72972819]
[1772129175138,1.52132046,1990.9,1990.2,1.25615516]
[1772129175334,1.52232046,1990.9,1990.2,1.25615516]
[1772129175536,1.05578095,1990.7,1990.0,1.25737882]
[1772129175855,1.05578095,1990.6,1990.0,0.0011]
[1772129176553,1.05578095,1990.6,1990.0,1.25737306]
[1772129176940,1.05578095,1990.6,1990.0,0.0011]
[1772129177139,1.05578095,1990.4,1990.0,0.0011]
[1772129179258,1.05578095,1990.6,1990.0,0.0011]
[1772129180335,2.87888624,1990.7,1990.0,0.0011]
[1772129180336,1.05578095,1990.4,1990.0,0.0011]
[1772129180662,1.05578095,1990.4,1989.7,0.0011]
[1772129181232,1.05578095,1990.2,1989.7,0.0011]
[1772129181456,1.05578095,1990.1,1989.7,0.0011]
[1772129183344,1.623,1990.1,1989.7,0.0011]
[1772129183545,2.67878095,1990.1,1989.7,0.0011]
[1772129184763,2.67878095,1990.1,1989.5,0.0011]
[1772129184764,1.05578095,1989.9,1989.5,0.0011]
[1772129185332,1.05578095,1989.7,1988.8,1.25700872]
[1772129185559,1.05578095,1989.7,1988.8,1.61333843]
[1772129186334,1.05578095,1989.7,1988.9,0.35632971]
[1772129187362,6.64863071,1990.1,1989.8,0.0011]
[1772129187363,6.08078405,1990.1,1989.8,0.0011]
[1772129187666,1.05578095,1990.1,1989.8,0.0011]
[1772129188164,1.05578095,1990.1,1989.1,0.3574405]
[1772129188165,1.05578095,1990.0,1989.1,0.3574405]
[1772129188346,1.05578095,1990.0,1989.7,0.0011]
[1772129189079,1.624,1990.2,1989.7,0.0011]
[1772129189280,1.05678095,1990.5,1989.7,0.35854627]
[1772129189561,0.001,1990.5,1990.0,0.35746292]
[1772129190342,1.05578095,1990.8,1989.8,1.61387059]
[1772129190548,1.05578095,1990.8,1989.8,1.25640767]
[1772129191860,1.05578095,1990.6,1989.7,0.0011]
[1772129192047,1.05578095,1990.4,1989.7,0.0011]
[1772129193869,1.05578095,1990.2,1989.7,0.0011]
[1772129194365,1.05578095,1990.2,1989.5,0.0011]
[1772129194568,1.05578095,1990.2,1988.9,1.25696576]
[1772129194569,1.05578095,1990.0,1989.0,1.25687472]
[1772129194774,1.05578095,1989.8,1988.8,5.02803928]
[1772129194949,1.05578095,1989.8,1988.7,0.3435482]
[1772129195279,1.01128885,1989.7,1988.6,1.25711881]
[1772129195669,1.01128885,1989.6,1988.4,5.02903462]
[1772129196051,1.01128885,1989.4,1988.4,1.25729229]
[1772129196279,1.01128885,1989.3,1988.3,1.25730583]
[1772129196654,0.814,1989.4,1987.8,2.65825602]
[1772129196655,2.22390215,1989.1,1987.8,2.65825602]
[1772129196971,1.01128885,1989.0,1987.6,5.03105776]
[1772129197172,1.25659713,1989.5,1987.6,1.25779834]
[1772129197173,1.01128885,1988.7,1987.6,1.25779834]
[1772129197378,2.22390215,1988.8,1987.4,2.69487474]
[1772129197379,1.01128885,1988.5,1987.4,2.69487474]
[1772129197747,1.01128885,1988.5,1987.4,1.25787474]
[1772129198272,1.25729229,1988.4,1987.3,5.0316997]
[1772129198446,1.01128885,1988.0,1987.1,1.25808075]
[1772129199776,1.01128885,1988.0,1986.9,5.03284546]
[1772129200156,0.95095838,1988.2,1987.3,2.54279613]
[1772129200376,0.95095838,1988.3,1987.4,1.25792492]
[1772129201073,0.95095838,1988.3,1987.3,2.07194726]
[1772129201459,0.95095838,1988.1,1986.8,1.25830481]
[1772129201761,0.95095838,1988.1,1986.9,1.5969061]
[1772129202361,0.95095838,1987.9,1987.0,1.25817815]
[1772129204586,2.20863017,1987.8,1987.0,1.25817815]
[1772129205055,0.95095838,1987.8,1987.2,1.5969061]
[1772129206360,0.95095838,1987.8,1986.9,1.5969061]
[1772129206564,0.95095838,1987.8,1986.8,2.69424532]
[1772129206774,2.2086924,1987.8,1987.0,1.5969061]
[1772129207594,0.95095838,1987.7,1987.0,1.5969061]
[1772129209290,0.95095838,1987.7,1987.1,1.25811484]
[1772129209999,0.95095838,1988.0,1987.3,1.5969061]
[1772129210191,0.95095838,1988.0,1987.1,1.25811484]
[1772129210192,2.20850757,1988.0,1987.2,1.5969061]
[1772129210995,0.95095838,1987.9,1987.2,1.5969061]
[1772129211297,0.95095838,1987.9,1987.1,1.25811484]
[1772129211298,2.20856927,1987.9,1987.1,1.25805152]
[1772129211601,0.95095838,1987.8,1987.1,2.69405152]
[1772129212106,2.20849826,1988.1,1987.3,1.5969061]
[1772129212701,0.95095838,1988.1,1987.6,1.5969061]
[1772129213587,2.20845382,1988.1,1987.6,2.85465189]
[1772129213868,0.95095838,1988.0,1987.1,1.25920989]
[1772129214076,1.25749544,1988.1,1986.8,0.0011]
[1772129214077,0.95095838,1987.7,1986.8,0.0011]
[1772129214290,1.5969061,1987.8,1986.8,0.0011]
[1772129214291,0.95095838,1987.5,1986.8,0.0011]
[1772129214871,0.95095838,1987.5,1986.8,1.25937854]
[1772129215804,2.2088797,1987.5,1986.8,0.0011]
[1772129216303,0.95095838,1987.4,1986.8,0.0011]
[1772129216682,0.95095838,1987.4,1986.3,5.30791267]
[1772129216683,1.5969061,1987.4,1986.0,1.25008675]
[1772129217009,0.95095838,1987.3,1986.1,2.85561604]
[1772129217217,0.95095838,1987.3,1986.4,1.5969061]
[1772129217701,0.95095838,1987.1,1986.4,1.25853849]
[1772129217957,0.95095838,1987.1,1986.0,3.11491454]
[1772129218123,0.95095838,1987.1,1986.1,6.46985909]
[1772129218272,0.95095838,1987.1,1986.0,4.37366284]
[1772129218273,0.95095838,1987.1,1986.0,1.25877504]
[1772129218479,0.95095838,1986.9,1985.6,2.8559251]
[1772129218905,0.95095838,1986.9,1985.4,6.63357641]
[1772129219098,0.95095838,1986.7,1985.5,1.25907384]
[1772129219712,1.5969061,1986.4,1985.1,1.25938239]
[1772129219918,0.95095838,1986.2,1985.2,1.5969061]
[1772129220696,0.814,1986.3,1985.8,1.5969061]
[1772129220899,0.814,1986.3,1985.4,3.45092397]
[1772129221102,0.814,1986.3,1985.6,1.5969061]
[1772129221302,0.95095838,1986.5,1985.6,1.5969061]
[1772129221709,0.95095838,1986.5,1985.7,1.25900186]
[1772129221913,2.20945363,1986.5,1985.7,1.25665329]
[1772129222216,2.20945363,1986.5,1985.3,6.47103329]
[1772129222217,0.95095838,1986.1,1985.0,1.41802069]
[1772129222507,0.95095838,1985.9,1985.0,1.41802069]
[1772129222895,1.611,1986.0,1984.1,1.26001713]
[1772129222896,0.95095838,1985.6,1984.1,1.26001713]
[1772129223288,0.95095838,1985.6,1984.3,1.5969061]
[1772129223897,0.95095838,1985.4,1984.4,1.25982664]
[1772129224422,0.95095838,1985.3,1984.0,4.1770057]
[1772129224624,0.95095838,1985.3,1984.3,1.5969061]
[1772129225114,1.61,1985.4,1984.6,1.5969061]
[1772129225487,1.61,1985.4,1984.3,0.40567323]
[1772129225488,1.03287838,1986.1,1985.3,1.5969061]
[1772129225688,0.95095838,1986.0,1985.4,0.0011]
[1772129225891,0.95095838,1985.9,1985.4,0.0011]
[1772129226598,0.95095838,1986.2,1985.5,1.5969061]
[1772129227322,0.95095838,1986.5,1985.8,1.5969061]
[1772129227489,1.76495838,1986.8,1985.8,1.5969061]
[1772129227821,1.76495838,1986.8,1985.9,1.25887506]
[1772129227822,0.95095838,1986.7,1985.9,1.25887506]
[1772129228019,0.95095838,1986.7,1986.1,1.5969061]
[1772129228222,0.95095838,1987.0,1986.1,1.5969061]
[1772129228412,1.5969061,1987.0,1985.9,1.25887506]
[1772129228614,0.95095838,1986.9,1985.9,1.25887506]
[1772129228822,0.95095838,1986.9,1986.0,1.5969061]
[1772129229425,0.95095838,1986.9,1985.9,1.25887506]
[1772129229722,5.58888422,1987.2,1986.3,1.5969061]
[1772129229723,2.7338893,1987.2,1986.3,1.5969061]
[1772129229926,2.7338893,1987.2,1986.4,1.25855819]
[1772129229927,0.99717566,1987.2,1986.4,1.25855819]
[1772129230239,0.99717566,1987.1,1986.4,1.25855819]
[1772129230450,0.99717566,1987.4,1986.7,1.5969061]
[1772129230937,0.99717566,1987.4,1986.4,1.25855819]
[1772129230938,0.99717566,1987.4,1986.4,2.85546429]
[1772129232126,0.99717566,1988.1,1987.3,1.5969061]
[1772129232293,0.99717566,1988.1,1987.2,1.5969061]
[1772129233023,0.99717566,1988.1,1987.1,1.433]
[1772129233629,0.99717566,1987.4,1986.4,1.25855819]
[1772129234019,2.60417566,1987.6,1986.8,1.5969061]
[1772129234315,3.86198158,1987.6,1986.8,1.5969061]
[1772129234501,0.99717566,1987.5,1986.5,1.5969061]
[1772129234898,0.99717566,1987.5,1986.8,1.5969061]
[1772129235325,1.607,1987.6,1986.7,1.59699881]
[1772129235730,0.99717566,1987.8,1987.0,1.59699881]
[1772129236101,0.99717566,1988.0,1987.1,1.25811484]
[1772129237505,0.99817566,1988.0,1987.1,1.25811484]
[1772129238700,2.25572147,1988.0,1987.1,2.69011484]
[1772129239097,0.99817566,1988.0,1987.1,2.69011484]
[1772129239513,2.25573002,1988.0,1987.1,2.69011484]
[1772129239826,0.99817566,1988.0,1987.1,2.69011484]
[1772129240935,2.25572267,1988.0,1987.1,2.69011484]
[1772129241615,0.99717566,1987.9,1987.1,2.69011484]
[1772129242010,0.99717566,1987.8,1987.1,2.69011484]
[1772129242908,0.99717566,1987.8,1987.1,1.432]
[1772129243426,0.99717566,1987.8,1987.0,1.25815042]
[1772129243820,0.99717566,1987.8,1986.8,1.25830481]
[1772129244022,0.99717566,1987.7,1986.8,1.25830481]
[1772129244251,0.99717566,1987.5,1986.8,1.25830481]
[1772129245726,0.99717566,1987.5,1986.7,2.68831697]
[1772129245907,0.99717566,1987.5,1986.7,2.68836084]
[1772129246113,0.99717566,1987.5,1986.7,1.43]
[1772129246307,0.99717566,1987.3,1986.7,1.43]
[1772129247005,0.99717566,1987.3,1986.5,1.2584477]
[1772129247201,0.99717566,1987.3,1986.3,5.03434678]
[1772129247432,0.99717566,1987.3,1986.3,6.46334678]
[1772129247934,0.99717566,1987.3,1986.3,2.68762155]
[1772129248148,0.99717566,1987.3,1986.0,6.46512821]
[1772129248525,0.99717566,1987.1,1986.0,6.46512821]
[1772129249152,0.99717566,1987.1,1986.0,2.68881168]
[1772129250150,0.99717566,1987.1,1985.7,1.25893846]
[1772129250338,0.99717566,1986.9,1985.8,1.43]
[1772129250951,0.99717566,1986.7,1985.9,1.25887506]
[1772129252044,0.99717566,1986.7,1985.5,1.25912868]
[1772129252045,0.99717566,1986.6,1985.5,1.25912868]
[1772129252762,0.99717566,1986.4,1985.4,0.0011]
[1772129252966,0.99717566,1986.1,1985.4,0.0011]
[1772129253262,1.25868492,1986.2,1985.1,0.0011]
[1772129253263,0.99717566,1985.9,1985.1,0.0011]
[1772129254953,1.25893846,1985.8,1985.1,0.0011]
[1772129255154,0.99717566,1985.7,1985.1,0.0011]
[1772129257366,2.25623182,1985.7,1985.1,0.0011]
[1772129257562,2.25618627,1985.7,1985.1,0.0011]
[1772129258273,0.89218745,1985.6,1985.1,0.0011]
[1772129258440,0.89218745,1985.6,1985.0,0.0011]
[1772129258937,0.89218745,1985.9,1985.1,1.60044028]
[1772129259257,0.89218745,1986.1,1985.4,1.60044028]
[1772129259457,0.89218745,1985.7,1985.0,0.0011]
[1772129261267,3.19644028,1985.8,1985.0,0.0011]
[1772129261268,0.90561968,1985.1,1985.0,0.0011]
[1772129261771,0.90561968,1985.6,1985.0,0.0011]
[1772129261971,0.90561968,1985.6,1985.3,0.0011]
[1772129263706,1.596,1985.8,1985.3,0.0011]
[1772129263908,2.85497267,1985.8,1985.3,0.0011]
[1772129264217,2.85497267,1985.8,1985.2,0.0011]
[1772129264218,0.90561968,1985.7,1985.2,0.0011]
[1772129265190,0.90561968,1985.7,1985.0,0.0011]
[1772129265391,0.90561968,1985.3,1984.8,0.0011]
[1772129265614,0.90561968,1985.1,1984.8,0.0011]
[1772129265991,0.90561968,1985.1,1983.6,3.50060739]
[1772129266201,0.90561968,1985.1,1983.7,5.04087464]
[1772129266582,0.90561968,1984.9,1983.7,5.04087464]
[1772129266818,1.597,1985.2,1983.5,5.04155567]
[1772129266819,0.90561968,1984.7,1983.5,1.2603468]
[1772129267022,0.90561968,1984.5,1983.5,1.2603468]
[1772129267608,0.90561968,1984.3,1983.4,5.04167081]
[1772129267923,0.90561968,1984.3,1982.7,5.04348116]
[1772129268128,1.25982664,1984.4,1981.0,0.1586097]
[1772129268129,0.90561968,1982.7,1981.0,0.1586097]
[1772129268344,0.90561968,1982.7,1978.7,0.00353]
[1772129268345,2.095572,1979.3,1978.9,1.26332811]
[1772129268506,1.06422938,1981.0,1979.1,0.88062936]
[1772129268825,1.0622588,1981.1,1979.9,0.88062936]
[1772129269013,3.54032968,1980.9,1979.2,0.79475838]
[1772129269194,0.90561968,1980.9,1978.8,0.00784893]
[1772129269395,0.74241269,1980.5,1979.6,0.04177685]
[1772129269591,0.74241269,1980.1,1978.9,1.30508114]
[1772129269827,1.112,1980.2,1979.7,0.04177685]
[1772129270026,1.41,1980.6,1980.1,0.04177685]
[1772129270197,1.41,1980.6,1979.9,0.04177685]
[1772129270397,1.848066,1980.5,1979.9,0.04177685]
[1772129270600,1.848066,1980.5,1980.0,0.88062936]
[1772129270601,1.80628915,1980.5,1980.0,0.88062936]
[1772129270819,0.79162731,1980.5,1980.0,0.88062936]
[1772129271020,0.2482588,1981.1,1980.1,0.88062936]
[1772129271208,0.263,1981.7,1980.8,0.88062936]
[1772129271408,0.263,1981.7,1981.0,0.88062936]
[1772129271607,0.263,1981.7,1981.1,2.14255455]
[1772129271818,0.263,1981.7,1981.1,0.88062936]
[1772129272020,0.46635204,1981.7,1981.1,0.88062936]
[1772129272232,0.20335204,1981.6,1981.1,0.88062936]
[1772129272543,1.26097044,1982.6,1981.4,0.88062936]
[1772129273038,0.20335204,1982.6,1981.8,3.13429559]
[1772129273227,2.72748234,1983.6,1982.3,0.88062936]
[1772129273534,1.26039828,1983.5,1982.3,0.88062936]
[1772129273830,3.012547,1983.3,1981.9,0.88062936]
[1772129274331,3.012547,1983.2,1981.9,0.88062936]
[1772129275212,3.012547,1983.0,1981.9,0.88062936]
[1772129275406,3.012547,1982.8,1981.9,0.88062936]
[1772129275607,3.012547,1982.6,1981.9,0.88062936]
[1772129275806,0.20335204,1982.7,1981.9,0.88062936]
[1772129276438,2.90587451,1982.8,1981.9,0.88062936]
[1772129276731,3.012547,1982.6,1981.2,0.88062936]
[1772129277713,1.54630608,1982.5,1980.9,2.14263881]
[1772129277931,1.54630608,1982.5,1981.0,0.88062936]
[1772129277932,3.012547,1982.4,1981.0,0.88062936]
[1772129278419,0.28527204,1982.3,1981.0,0.88062936]
[1772129278619,0.08192,1982.1,1981.0,0.88062936]
[1772129278917,3.012547,1981.9,1981.0,0.88062936]
[1772129279118,3.012547,1981.7,1981.0,0.88062936]
[1772129279307,3.012547,1981.7,1980.7,0.88062936]
[1772129279511,0.20335204,1981.6,1980.7,0.88062936]
[1772129279829,1.644,1982.0,1980.7,0.88062936]
[1772129279830,1.26147946,1981.8,1980.9,0.88062936]
[1772129280342,0.20335204,1981.7,1980.9,0.88062936]
[1772129280513,3.012547,1981.6,1980.9,0.88062936]
[1772129280716,3.21589904,1981.6,1980.3,0.88062936]
[1772129280942,3.012547,1981.4,1980.3,0.88062936]
[1772129281109,1.645,1981.3,1980.3,0.88062936]
[1772129281738,2.90685334,1981.3,1980.5,0.88062936]
[1772129281943,0.20335204,1981.2,1980.5,0.88062936]
[1772129282257,0.20335204,1981.2,1979.6,0.0011]
[1772129282258,0.20335204,1981.2,1979.7,2.14344695]